bitfinex-derivatives/quotes_BTCF0:USTF0_20250711
["timestamp","ask_amount","ask_price","bid_price","bid_amount"]
[1752225977750,1.92449634,118290.0,118260.0,0.82792077]
[1752225977950,0.76798253,118280.0,118270.0,0.3604229]
[1752225978156,0.69195574,118280.0,118270.0,0.68918187]
[1752225978856,0.58552,118280.0,118270.0,0.68918187]
[1752225979254,0.58552,118280.0,118270.0,0.3287229]
[1752225979451,0.7545513,118280.0,118270.0,0.68918187]
[1752225980260,0.7545513,118280.0,118270.0,0.69777653]
[1752225980454,0.7545513,118280.0,118270.0,0.70177653]
[1752225980655,0.7545513,118280.0,118270.0,0.70377653]
[1752225981154,1.1153513,118280.0,118270.0,0.34331756]
[1752225981553,1.1153513,118280.0,118270.0,0.70377653]
[1752225981756,1.1153513,118280.0,118270.0,0.77098227]
[1752225982956,1.19135181,118280.0,118270.0,0.77098227]
[1752225983156,1.17610877,118280.0,118270.0,0.77098227]
[1752225983560,1.17610877,118280.0,118270.0,0.76898227]
[1752225984665,1.00707747,118280.0,118270.0,0.76898227]
[1752225985266,0.64627747,118280.0,118270.0,0.76898227]
[1752225986467,0.64627747,118280.0,118270.0,0.77098227]
[1752225986965,0.58552,118280.0,118270.0,0.77098227]
[1752225989365,0.58552,118280.0,118270.0,0.76998227]
[1752225990966,0.58552,118280.0,118270.0,0.77098227]
[1752225991868,0.64627747,118280.0,118270.0,0.77098227]
[1752225993171,0.58552,118280.0,118270.0,0.77098227]
[1752225995674,0.0339,118290.0,118280.0,0.1690313]
[1752225995874,0.64795747,118290.0,118280.0,0.56109027]
[1752225996973,0.5872,118290.0,118280.0,0.56209027]
[1752225997374,0.002,118290.0,118280.0,0.56209027]
[1752225997576,0.58716,118290.0,118280.0,0.59459027]
[1752225997778,0.58716,118290.0,118280.0,0.59659027]
[1752225998076,0.58712,118290.0,118280.0,0.59659027]
[1752225998973,0.58712,118290.0,118280.0,0.2361313]
[1752225999167,0.94792,118290.0,118280.0,0.59659027]
[1752225999376,1.01172,118290.0,118280.0,0.59659027]
[1752225999572,0.65092,118290.0,118280.0,0.59659027]
[1752225999772,1.01172,118290.0,118280.0,0.59659027]
[1752226000276,0.71167747,118290.0,118280.0,0.59659027]
[1752226000679,0.71167747,118290.0,118280.0,0.56409027]
[1752226000983,0.65092,118290.0,118280.0,0.53249027]
[1752226001182,1.01172,118290.0,118280.0,0.53249027]
[1752226001980,1.01172,118290.0,118280.0,0.1720313]
[1752226002180,1.180737,118290.0,118280.0,0.53249027]
[1752226002383,1.01172,118290.0,118280.0,0.53249027]
[1752226004586,1.08772051,118290.0,118280.0,0.53249027]
[1752226005085,1.14855955,118290.0,118280.0,0.53249027]
[1752226005283,1.07255904,118290.0,118280.0,0.53249027]
[1752226009493,1.01172,118290.0,118280.0,0.53249027]
[1752226012797,0.65092,118290.0,118280.0,0.53249027]
[1752226013002,1.01172,118290.0,118280.0,0.53249027]
[1752226014800,1.07255904,118290.0,118280.0,0.53249027]
[1752226015002,1.07255904,118290.0,118280.0,0.57744003]
[1752226015194,1.01172,118290.0,118280.0,0.57744003]
[1752226015394,1.25673751,118290.0,118280.0,0.57744003]
[1752226015796,1.25673751,118290.0,118280.0,0.1720313]
[1752226015997,1.25673751,118290.0,118280.0,0.57744003]
[1752226016188,1.08772051,118290.0,118280.0,0.57744003]
[1752226017402,1.01172,118290.0,118280.0,0.1720313]
[1752226017701,1.180737,118290.0,118280.0,0.57744003]
[1752226018094,1.01172,118290.0,118280.0,0.57744003]
[1752226018299,0.65092,118290.0,118280.0,0.57744003]
[1752226019202,1.01172,118290.0,118280.0,0.57744003]
[1752226019703,1.58614573,118290.0,118280.0,0.57744003]
[1752226020907,1.64696401,118290.0,118280.0,0.57744003]
[1752226022107,1.25673751,118290.0,118280.0,0.57744003]
[1752226022907,1.25673751,118290.0,118280.0,0.53242138]
[1752226023111,1.31756616,118290.0,118280.0,0.53242138]
[1752226023310,1.24156565,118290.0,118280.0,0.53242138]
[1752226025710,0.88076565,118290.0,118280.0,0.53242138]
[1752226026202,0.88076565,118290.0,118280.0,0.1720313]
[1752226034510,0.29564565,118290.0,118280.0,0.1720313]
[1752226034707,0.88024565,118290.0,118280.0,0.1720313]
[1752226038615,0.29564565,118290.0,118280.0,0.1720313]
[1752226038814,0.88020565,118290.0,118280.0,0.1720313]
[1752226041116,0.819377,118290.0,118280.0,0.1720313]
[1752226042522,0.819377,118290.0,118280.0,0.53242138]
[1752226043018,0.819377,118290.0,118280.0,0.57747517]
[1752226045219,0.819377,118290.0,118280.0,0.1720313]
[1752226045416,1.22482087,118290.0,118280.0,0.57747517]
[1752226045723,1.00106087,118290.0,118280.0,0.57747517]
[1752226046021,1.64628952,118290.0,118280.0,0.57747517]
[1752226047022,1.58546087,118290.0,118280.0,0.57747517]
[1752226047423,1.22466087,118290.0,118280.0,0.57747517]
[1752226047623,1.58546087,118290.0,118280.0,0.57747517]
[1752226049225,1.58546087,118290.0,118280.0,0.1720313]
[1752226049420,1.58546087,118290.0,118280.0,0.57747517]
[1752226050224,1.22466087,118290.0,118280.0,0.57747517]
[1752226051119,1.58546087,118290.0,118280.0,0.57747517]
[1752226052627,1.24084565,118290.0,118280.0,0.57747517]
[1752226052821,1.64628952,118290.0,118280.0,0.57747517]
[1752226053225,1.28548952,118290.0,118280.0,0.57747517]
[1752226053725,1.64628952,118290.0,118280.0,0.57747517]
[1752226053926,1.58546087,118290.0,118280.0,0.60180606]
[1752226054322,1.180017,118290.0,118280.0,0.60180606]
[1752226054823,1.58546087,118290.0,118280.0,0.60180606]
[1752226055927,1.58546087,118290.0,118280.0,0.19636219]
[1752226056227,1.58546087,118290.0,118280.0,0.60180606]
[1752226056428,1.22466087,118290.0,118280.0,0.19636219]
[1752226056632,1.58546087,118290.0,118280.0,0.60180606]
[1752226056929,1.58546087,118290.0,118280.0,0.19636219]
[1752226057130,1.58546087,118290.0,118280.0,0.60180606]
[1752226057440,1.22466087,118290.0,118280.0,0.60180606]
[1752226057631,1.58546087,118290.0,118280.0,0.60180606]
[1752226057933,1.58546087,118290.0,118280.0,0.57747517]
[1752226058131,1.58546087,118290.0,118280.0,0.1720313]
[1752226058428,1.58546087,118290.0,118280.0,0.57747517]
[1752226059222,1.180017,118290.0,118280.0,0.57747517]
[1752226059631,1.58546087,118290.0,118280.0,0.57747517]
[1752226060432,1.180017,118290.0,118280.0,0.57747517]
[1752226061331,1.180017,118290.0,118280.0,0.1720313]
[1752226061533,1.180017,118290.0,118280.0,0.57747517]
[1752226061735,0.819217,118290.0,118280.0,0.57747517]
[1752226062035,1.24084565,118290.0,118280.0,0.57747517]
[1752226063330,1.180017,118290.0,118280.0,0.57747517]
[1752226064033,0.89521751,118290.0,118280.0,0.57747517]
[1752226064228,0.819217,118290.0,118280.0,0.57747517]
[1752226064730,1.180017,118290.0,118280.0,0.57747517]
[1752226065233,0.819217,118290.0,118280.0,0.57747517]
[1752226066435,0.89521751,118290.0,118280.0,0.57747517]
[1752226067432,1.180017,118290.0,118280.0,0.57747517]
[1752226067831,1.58546087,118290.0,118280.0,0.1720313]
[1752226068032,1.58546087,118290.0,118280.0,0.57747517]
[1752226069134,1.66146138,118290.0,118280.0,0.57747517]
[1752226070534,1.66146138,118290.0,118280.0,0.1720313]
[1752226070725,1.66146138,118290.0,118280.0,0.57747517]
[1752226071336,1.58546087,118290.0,118280.0,0.57747517]
[1752226073137,1.64635095,118290.0,118280.0,0.57747517]
[1752226073837,1.24090708,118290.0,118280.0,0.57747517]
[1752226074138,1.64635095,118290.0,118280.0,0.57747517]
[1752226075739,1.58546087,118290.0,118280.0,0.57747517]
[1752226076043,1.22466087,118290.0,118280.0,0.57747517]
[1752226076230,1.28555285,118290.0,118280.0,0.57747517]
[1752226076835,1.64635285,118290.0,118280.0,0.57747517]
[1752226077040,1.28555285,118290.0,118280.0,0.57747517]
[1752226078044,1.64635285,118290.0,118280.0,0.57747517]
[1752226078844,1.24090898,118290.0,118280.0,0.57747517]
[1752226079044,1.24090898,118290.0,118280.0,0.57547517]
[1752226079345,1.24090898,118290.0,118280.0,0.57747517]
[1752226079644,1.24090898,118290.0,118280.0,0.57947517]
[1752226081048,1.24090898,118290.0,118280.0,0.61257517]
[1752226082351,1.180017,118290.0,118280.0,0.61257517]
[1752226083153,1.24091046,118290.0,118280.0,0.61257517]
[1752226084352,0.65651046,118290.0,118280.0,0.61257517]
[1752226084548,0.818617,118290.0,118280.0,0.61257517]
[1752226085552,0.234817,118290.0,118280.0,0.61257517]
[1752226085754,0.818617,118290.0,118280.0,0.61257517]
[1752226086459,0.87951046,118290.0,118280.0,0.61257517]
[1752226086756,1.24031046,118290.0,118280.0,0.61257517]
[1752226087555,1.24031046,118290.0,118280.0,0.2071313]
[1752226087752,1.24031046,118290.0,118280.0,0.61257517]
[1752226087947,1.06195433,118290.0,118280.0,0.61257517]
[1752226088152,1.64571433,118290.0,118280.0,0.61257517]
[1752226088455,1.24027046,118290.0,118280.0,0.61257517]
[1752226088653,1.64571433,118290.0,118280.0,0.61257517]
[1752226089355,1.24027046,118290.0,118280.0,0.61257517]
[1752226089552,1.64571433,118290.0,118280.0,0.61257517]
[1752226091056,1.06195433,118290.0,118280.0,0.61257517]
[1752226091259,1.64563433,118290.0,118280.0,0.61257517]
[1752226091558,1.06195433,118290.0,118280.0,0.61257517]
[1752226091755,1.28483433,118290.0,118280.0,0.61257517]
[1752226092158,1.64563433,118290.0,118280.0,0.61257517]
[1752226092860,1.24019046,118290.0,118280.0,0.61257517]
[1752226093160,1.28483433,118290.0,118280.0,0.61257517]
[1752226093355,1.64563433,118290.0,118280.0,0.61257517]
[1752226093856,1.28483433,118290.0,118280.0,0.61257517]
[1752226094156,0.87939046,118290.0,118280.0,0.61257517]
[1752226094357,1.28483433,118290.0,118280.0,0.61257517]
[1752226094757,0.87939046,118290.0,118280.0,0.61257517]
[1752226094950,1.64559433,118290.0,118280.0,0.61257517]
[1752226095354,1.64559433,118290.0,118280.0,0.2071313]
[1752226095560,1.64559433,118290.0,118280.0,0.61257517]
[1752226096355,1.24015046,118290.0,118280.0,0.61257517]
[1752226096561,1.06195433,118290.0,118280.0,0.61257517]
[1752226096763,1.64555433,118290.0,118280.0,0.61257517]
[1752226096957,1.28475433,118290.0,118280.0,0.2071313]
[1752226097156,1.28475433,118290.0,118280.0,0.61257517]
[1752226097561,0.87931046,118290.0,118280.0,0.61257517]
[1752226097760,1.28475433,118290.0,118280.0,0.61257517]
[1752226097962,1.64555433,118290.0,118280.0,0.61257517]
[1752226098262,1.58466087,118290.0,118280.0,0.61257517]
[1752226098864,1.22386087,118290.0,118280.0,0.61257517]
[1752226099066,1.58466087,118290.0,118280.0,0.61257517]
[1752226100164,1.64555433,118290.0,118280.0,0.61257517]
[1752226102966,1.64555433,118290.0,118280.0,0.2071313]
[1752226103167,1.58466087,118290.0,118280.0,0.61257517]
[1752226103364,1.66066138,118290.0,118280.0,0.61257517]
[1752226104068,1.66066138,118290.0,118280.0,0.2071313]
[1752226104269,1.66066138,118290.0,118280.0,0.61257517]
[1752226105865,1.25521751,118290.0,118280.0,0.61257517]
[1752226106065,1.66066138,118290.0,118280.0,0.61257517]
[1752226106470,1.25521751,118290.0,118280.0,0.61257517]
[1752226107370,0.67161751,118290.0,118280.0,0.61257517]
[1752226107567,1.25509751,118290.0,118280.0,0.61257517]
[1752226109172,1.25505751,118290.0,118280.0,0.61257517]
[1752226109474,1.25505751,118290.0,118280.0,0.2071313]
[1752226109972,1.25505751,118290.0,118280.0,0.61257517]
[1752226111473,1.25505751,118290.0,118280.0,0.2071313]
[1752226111675,1.25505751,118290.0,118280.0,0.61257517]
[1752226112170,1.179057,118290.0,118280.0,0.61257517]
[1752226112876,0.818257,118290.0,118280.0,0.61257517]
[1752226113071,0.234817,118290.0,118280.0,0.61257517]
[1752226113277,0.818217,118290.0,118280.0,0.63741764]
[1752226114183,0.818217,118290.0,118280.0,0.23197377]
[1752226114479,0.818217,118290.0,118280.0,0.63741764]
[1752226116178,1.179017,118290.0,118280.0,0.63741764]
[1752226116681,1.23991043,118290.0,118280.0,0.61257517]
[1752226117178,0.87911043,118290.0,118280.0,0.61257517]
[1752226118382,0.87911043,118290.0,118280.0,0.2071313]
[1752226118583,0.87911043,118290.0,118280.0,0.61257517]
[1752226119184,0.29571043,118290.0,118280.0,0.61257517]
[1752226119484,0.87899033,118290.0,118280.0,0.61257517]
[1752226121588,0.87899033,118290.0,118280.0,0.2071313]
[1752226121786,0.87899033,118290.0,118280.0,0.61257517]
[1752226124087,1.23979033,118290.0,118280.0,0.61257517]
[1752226124282,0.87899033,118290.0,118280.0,0.61257517]
[1752226124486,1.23979033,118290.0,118280.0,0.61257517]
[1752226126376,0.84639033,118290.0,118280.0,0.61257517]
[1752226126586,0.09409343,118290.0,118280.0,0.64477517]
[1752226126784,0.64609343,118290.0,118280.0,1.41101904]
[1752226128088,0.5852,118290.0,118280.0,1.41101904]
[1752226128289,0.002,118290.0,118280.0,1.41101904]
[1752226128490,0.58516,118290.0,118280.0,1.41101904]
[1752226130087,0.64605343,118290.0,118280.0,1.41101904]
[1752226130986,0.58516,118290.0,118280.0,1.41101904]
[1752226132792,0.58516,118290.0,118280.0,1.43597563]
[1752226134494,0.002,118290.0,118280.0,1.43597563]
[1752226136892,0.002,118290.0,118280.0,1.41101904]
[1752226137491,0.002,118290.0,118280.0,0.6001313]
[1752226137687,0.002,118290.0,118280.0,1.41101904]
[1752226142295,0.06289343,118290.0,118280.0,1.41101904]
[1752226145196,0.002,118290.0,118280.0,1.41101904]
[1752226151307,0.002,118290.0,118280.0,0.6001313]
[1752226151496,0.002,118290.0,118280.0,1.43638063]
[1752226151497,1e-07,118290.0,118280.0,1.43638063]
[1752226153205,1e-07,118290.0,118280.0,1.41101904]
[1752226153805,1e-07,118290.0,118280.0,1.43415237]
[1752226154001,1e-07,118290.0,118280.0,1.43515237]
[1752226154604,1e-07,118290.0,118280.0,1.43315237]
[1752226154905,1e-07,118290.0,118280.0,1.43715237]
[1752226155301,1e-07,118290.0,118280.0,1.41201904]
[1752226163218,1e-07,118290.0,118280.0,1.43737637]
[1752226164220,1e-07,118290.0,118280.0,2.01997637]
[1752226164518,1e-07,118290.0,118280.0,1.20908863]
[1752226164715,1e-07,118290.0,118280.0,2.01997637]
[1752226167220,1e-07,118290.0,118280.0,0.56118863]
[1752226167421,0.0303001,118290.0,118280.0,1.54913966]
[1752226167620,0.46744397,118290.0,118280.0,0.60577966]
[1752226167820,0.0620001,118290.0,118280.0,1.18833966]
[1752226168627,0.0620001,118290.0,118280.0,0.60577966]
[1752226170623,0.0620001,118290.0,118280.0,0.20033579]
[1752226170926,0.0620001,118290.0,118280.0,0.60577966]
[1752226171926,0.0620001,118290.0,118280.0,0.58047517]
[1752226173828,0.0620001,118290.0,118280.0,0.60622052]
[1752226174226,0.0620001,118290.0,118280.0,0.96702052]
[1752226174729,0.0620001,118290.0,118280.0,0.94127517]
[1752226175529,0.0620001,118290.0,118280.0,0.60612721]
[1752226176030,0.0620001,118290.0,118280.0,0.96692721]
[1752226184034,0.0620001,118290.0,118280.0,0.60612721]
[1752226184228,0.0620001,118290.0,118280.0,0.20068334]
[1752226184629,0.0620001,118290.0,118280.0,0.60612721]
[1752226185834,1.98498474,118290.0,118280.0,0.1750313]
[1752226186136,1.57954087,118290.0,118280.0,0.20064009]
[1752226186832,1.21874087,118290.0,118280.0,0.1750313]
[1752226187038,1.98498474,118290.0,118280.0,0.1750312]
[1752226187335,1.21874087,118290.0,118280.0,0.1750312]
[1752226187538,1.21874087,118290.0,118280.0,0.58047507]
[1752226188036,1.21874087,118290.0,118280.0,0.57947507]
[1752226188230,1.27956824,118290.0,118280.0,0.57947507]
[1752226188431,1.64036824,118290.0,118280.0,0.57947507]
[1752226188740,1.64036824,118290.0,118280.0,0.57847507]
[1752226189039,1.23492437,118290.0,118280.0,0.57847507]
[1752226189236,1.57954087,118290.0,118280.0,0.57847507]
[1752226189635,1.174097,118290.0,118280.0,0.57847507]
[1752226189837,1.57954087,118290.0,118280.0,0.57847507]
[1752226190040,1.64036824,118290.0,118280.0,0.57847507]
[1752226190543,1.27956824,118290.0,118280.0,0.57847507]
[1752226190732,1.23492437,118290.0,118280.0,0.57847507]
[1752226190937,1.64036824,118290.0,118280.0,0.57847507]
[1752226191141,1.23492437,118290.0,118280.0,0.57847507]
[1752226191346,1.64036824,118290.0,118280.0,0.57847507]
[1752226192141,1.27956824,118290.0,118280.0,0.57847507]
[1752226192443,1.64036824,118290.0,118280.0,0.57847507]
[1752226192645,1.57954087,118290.0,118280.0,0.1730312]
[1752226192846,1.57954087,118290.0,118280.0,0.57847507]
[1752226193840,1.21874087,118290.0,118280.0,0.57847507]
[1752226194043,1.21874087,118290.0,118280.0,0.1730312]
[1752226194346,1.21874087,118290.0,118280.0,0.57847507]
[1752226195244,1.57954087,118290.0,118280.0,0.57847507]
[1752226196646,1.57954087,118290.0,118280.0,0.1730312]
[1752226196842,1.57954087,118290.0,118280.0,0.57847507]
[1752226197242,1.57954087,118290.0,118280.0,0.1730312]
[1752226197547,1.57954087,118290.0,118280.0,0.57847507]
[1752226197944,1.64036824,118290.0,118280.0,0.57847507]
[1752226198546,1.64036824,118290.0,118280.0,0.1730312]
[1752226200450,1.57954087,118290.0,118280.0,0.57847507]
[1752226200652,1.64030707,118290.0,118280.0,0.57847507]
[1752226201152,1.2348632,118290.0,118280.0,0.1730312]
[1752226201450,1.64030707,118290.0,118280.0,0.57847507]
[1752226201649,1.64030707,118290.0,118280.0,0.1730312]
[1752226201951,1.64030707,118290.0,118280.0,0.57847507]
[1752226202151,1.64030707,118290.0,118280.0,0.1730312]
[1752226202350,1.64030707,118290.0,118280.0,0.59597831]
[1752226202550,1.64030707,118290.0,118280.0,0.19053444]
[1752226203052,1.64030707,118290.0,118280.0,0.59597831]
[1752226203352,1.57954087,118290.0,118280.0,0.19053444]
[1752226204143,2.04574872,118290.0,118280.0,0.19053444]
[1752226204551,1.64030485,118290.0,118280.0,0.19053444]
[1752226204952,2.04574872,118290.0,118280.0,0.19053444]
[1752226205750,2.04575196,118290.0,118280.0,0.19053444]
[1752226206051,2.04575196,118290.0,118280.0,0.004]
[1752226206052,2.15406474,118290.0,118280.0,0.004]
[1752226206453,2.23002376,118290.0,118280.0,0.004]
[1752226206651,0.1690455,118270.0,118260.0,0.2535773]
[1752226206846,1.89432855,118270.0,118260.0,0.2535773]
[1752226207044,1.95822855,118270.0,118260.0,0.2535773]
[1752226207457,1.59742855,118270.0,118260.0,0.2113126]
[1752226207751,1.76654055,118270.0,118260.0,0.1690479]
[1752226207951,2.12734055,118270.0,118260.0,0.1690479]
[1752226208252,0.1690598,118260.0,118250.0,0.2958638]
[1752226208449,0.59359107,118260.0,118250.0,0.2958638]
[1752226208650,0.95439107,118260.0,118250.0,0.2958638]
[1752226208956,1.01516285,118260.0,118250.0,0.2113294]
[1752226209348,0.95439107,118260.0,118250.0,0.2113294]
[1752226210250,1.01515274,118260.0,118250.0,0.2113294]
[1752226210949,1.23696147,118260.0,118250.0,0.2113294]
[1752226211860,1.23696147,118260.0,118250.0,0.22873805]
[1752226212356,1.1761998,118260.0,118250.0,0.22873805]
[1752226212557,1.24523039,118260.0,118250.0,0.22873805]
[1752226212855,1.24531039,118260.0,118250.0,0.22973805]
[1752226213952,0.89312201,118260.0,118250.0,0.22973805]
[1752226214152,0.88459039,118260.0,118250.0,0.22973805]
[1752226214352,1.24539039,118260.0,118250.0,0.22973805]
[1752226214847,0.88459039,118260.0,118250.0,0.22973805]
[1752226215049,1.24539039,118260.0,118250.0,0.22973805]
[1752226215356,0.88459039,118260.0,118250.0,0.22973805]
[1752226215958,1.24539039,118260.0,118250.0,0.22973805]
[1752226217159,1.60602166,118260.0,118250.0,0.22973805]
[1752226217357,1.24522166,118260.0,118250.0,0.18747105]
[1752226217747,1.60602166,118260.0,118250.0,0.18747105]
[1752226219365,1.24539039,118260.0,118250.0,0.18747105]
[1752226219657,1.60602166,118260.0,118250.0,0.18747105]
[1752226220255,1.24539039,118260.0,118250.0,0.18747105]
[1752226222959,1.24539039,118260.0,118250.0,0.18647105]
[1752226223862,1.60602166,118260.0,118250.0,0.18647105]
[1752226224764,0.1690741,118250.0,118240.0,0.2457398]
[1752226224965,0.59490537,118250.0,118240.0,0.2130398]
[1752226225965,0.95570537,118250.0,118240.0,0.2130398]
[1752226226762,0.95570537,118250.0,118240.0,0.2140398]
[1752226227057,0.59490537,118250.0,118240.0,0.2140398]
[1752226227255,0.95570537,118250.0,118240.0,0.2140398]
[1752226228059,0.5950741,118250.0,118240.0,0.2140398]
[1752226228460,0.5950741,118250.0,118240.0,0.2130398]
[1752226229365,0.5950741,118250.0,118240.0,0.60587107]
[1752226229865,0.5950741,118250.0,118240.0,0.2452398]
[1752226230877,0.5629741,118250.0,118240.0,0.2781398]
[1752226231476,0.5629741,118250.0,118240.0,0.63877107]
[1752226231778,0.5629741,118250.0,118240.0,0.57367107]
[1752226231979,0.5957741,118250.0,118240.0,0.2130398]
[1752226232278,0.5957741,118250.0,118240.0,0.2439398]
[1752226233278,0.5957741,118250.0,118240.0,0.2449398]
[1752226234974,0.65651311,118250.0,118240.0,0.2449398]
[1752226237971,0.06073901,118250.0,118240.0,0.96637107]
[1752226238177,0.06073901,118260.0,118250.0,0.169074]
[1752226238480,0.64385901,118260.0,118250.0,0.59250527]
[1752226238684,0.81291871,118260.0,118250.0,0.59250527]
[1752226239077,0.22979871,118260.0,118250.0,0.59250527]
[1752226239272,0.81291871,118260.0,118250.0,0.59250527]
[1752226239473,0.64385901,118260.0,118250.0,0.59250527]
[1752226239883,0.81291871,118260.0,118250.0,0.59250527]
[1752226240381,0.81301433,118260.0,118250.0,0.59250527]
[1752226241484,0.7521797,118260.0,118250.0,0.59250527]
[1752226241684,0.7521797,118260.0,118250.0,0.60250527]
[1752226242580,0.64395701,118260.0,118250.0,0.60250527]
[1752226243381,0.75332803,118270.0,118260.0,0.1690597]
[1752226243587,1.33640803,118270.0,118260.0,0.59029097]
[1752226243885,1.33636803,118270.0,118260.0,0.59029097]
[1752226244086,1.33636803,118270.0,118260.0,0.59873045]
[1752226244485,0.75332803,118270.0,118260.0,0.59873045]
[1752226244687,0.18238792,118270.0,118260.0,0.59873045]
[1752226244980,0.58308,118270.0,118260.0,0.95953045]
[1752226245384,0.65912529,118270.0,118260.0,0.95953045]
[1752226246087,0.65952529,118270.0,118260.0,0.95953045]
[1752226246288,0.58348,118270.0,118260.0,0.95953045]
[1752226247686,0.7525254,118270.0,118260.0,0.59873045]
[1752226248086,0.7525254,118270.0,118260.0,0.60473045]
[1752226248390,0.58348,118270.0,118260.0,0.60473045]
[1752226248589,0.7525254,118270.0,118260.0,0.60473045]
[1752226248790,0.58348,118270.0,118260.0,0.60473045]
[1752226248992,0.7525254,118270.0,118260.0,0.60473045]
[1752226249691,0.7525254,118270.0,118260.0,0.60373045]
[1752226249990,0.58348,118270.0,118260.0,0.60373045]
[1752226250386,0.7525254,118270.0,118260.0,0.60373045]
[1752226250782,0.58348,118270.0,118260.0,0.96453045]
[1752226250984,0.7525254,118270.0,118260.0,0.60473045]
[1752226251993,0.58348,118270.0,118260.0,0.60473045]
[1752226252193,0.7525254,118270.0,118260.0,0.60473045]
[1752226252494,0.7525254,118270.0,118260.0,0.60973045]
[1752226252688,0.7525254,118270.0,118260.0,0.24909918]
[1752226252894,0.7525254,118270.0,118260.0,0.60973045]
[1752226253095,0.7525254,118270.0,118260.0,0.24909918]
[1752226253290,0.81325885,118270.0,118260.0,0.60973045]
[1752226253593,1.17405885,118270.0,118260.0,0.57923045]
[1752226253795,1.20585885,118270.0,118260.0,0.57923045]
[1752226254095,1.20585885,118270.0,118260.0,0.57079097]
[1752226254295,1.20585885,118270.0,118260.0,0.2101597]
[1752226254492,1.56657012,118270.0,118260.0,0.1800597]
[1752226255196,1.20593885,118270.0,118260.0,0.1800597]
[1752226255391,1.56657012,118270.0,118260.0,0.1800597]
[1752226255796,1.20593885,118270.0,118260.0,0.1800597]
[1752226255998,1.56657012,118270.0,118260.0,0.1800597]
[1752226257398,1.20577012,118270.0,118260.0,0.1800597]
[1752226257587,1.20593885,118270.0,118260.0,0.1800597]
[1752226257791,0.84513885,118270.0,118260.0,0.1800597]
[1752226257992,1.20593885,118270.0,118260.0,0.1800597]
[1752226258188,0.84513885,118270.0,118260.0,0.1800597]
[1752226258397,1.20593885,118270.0,118260.0,0.1800597]
[1752226258700,1.20593885,118270.0,118260.0,0.1790597]
[1752226259399,0.84513885,118270.0,118260.0,0.1790597]
[1752226259588,0.97616,118270.0,118260.0,0.1790597]
[1752226259794,1.20593885,118270.0,118260.0,0.1790597]
[1752226261101,1.03689345,118270.0,118260.0,0.1790597]
[1752226261299,1.03649345,118270.0,118260.0,0.53969097]
[1752226261601,1.03649345,118270.0,118260.0,0.1790597]
[1752226261602,0.67569345,118270.0,118260.0,0.1790597]
[1752226261795,0.67569345,118270.0,118260.0,0.57009097]
[1752226261991,0.06073345,118270.0,118260.0,0.57009097]
[1752226262194,0.64389345,118270.0,118260.0,0.60179097]
[1752226262399,0.64397345,118270.0,118260.0,0.60179097]
[1752226262790,0.64397345,118270.0,118260.0,0.60079097]
[1752226263701,0.58324,118270.0,118260.0,0.60079097]
[1752226263899,0.58324,118270.0,118260.0,0.96159097]
[1752226264103,0.58324,118270.0,118260.0,0.60079097]
[1752226264303,0.7522854,118270.0,118260.0,0.60079097]
[1752226264505,0.81301885,118270.0,118260.0,0.60079097]
[1752226265795,0.81301885,118270.0,118260.0,0.96159097]
[1752226266104,0.22977885,118270.0,118260.0,0.60079097]
[1752226266303,0.81273885,118270.0,118260.0,0.60079097]
[1752226267702,0.84313885,118270.0,118260.0,0.2401597]
[1752226267902,0.84313885,118270.0,118260.0,0.60079097]
[1752226268604,0.0304,118270.0,118260.0,0.59979097]
[1752226268904,0.7822854,118270.0,118260.0,0.60079097]
[1752226269407,0.7822854,118270.0,118260.0,0.59979097]
[1752226270103,0.7822854,118270.0,118260.0,0.2074597]
[1752226270305,0.8141854,118270.0,118260.0,0.56809097]
[1752226273809,0.8141854,118270.0,118260.0,0.2074597]
[1752226274010,0.8141854,118270.0,118260.0,0.56809097]
[1752226274411,0.8141854,118270.0,118260.0,0.56909097]
[1752226274712,0.64514,118270.0,118260.0,0.56909097]
[1752226275210,0.64514,118270.0,118260.0,0.56809097]
[1752226275412,0.64514,118270.0,118260.0,0.56909097]
[1752226275611,0.70587345,118270.0,118260.0,0.56909097]
[1752226276113,0.70587345,118270.0,118260.0,0.2084597]
[1752226276414,0.70587345,118270.0,118260.0,0.56909097]
[1752226277518,0.70587345,118270.0,118260.0,0.92989097]
[1752226277815,0.70555345,118270.0,118260.0,0.92989097]
[1752226278718,0.12303345,118270.0,118260.0,0.92989097]
[1752226278918,0.67365345,118270.0,118260.0,0.92989097]
[1752226279109,0.67365345,118270.0,118260.0,0.96169097]
[1752226280710,0.09113345,118270.0,118260.0,0.96269097]
[1752226280919,0.07604539,118290.0,118280.0,0.1690311]
[1752226281115,0.65852539,118290.0,118280.0,0.52966237]
[1752226281319,0.65852539,118290.0,118280.0,0.59216237]
[1752226281619,0.5824801,118290.0,118280.0,0.59216237]
[1752226282325,0.5825601,118290.0,118280.0,0.59216237]
[1752226282825,1e-07,118290.0,118280.0,0.95296237]
[1752226283025,0.46894529,118300.0,118290.0,0.1690168]
[1752226283026,0.02505459,118300.0,118290.0,0.1690168]
[1752226283327,0.46714263,118320.0,118300.0,0.0422506]
[1752226283328,0.3608,118320.0,118300.0,0.0422506]
[1752226283620,1.1462411,118330.0,118320.0,0.168974]
[1752226283818,0.3948,118330.0,118320.0,0.168974]
[1752226284026,1.00776,118330.0,118320.0,0.168974]
[1752226284720,0.64696,118330.0,118320.0,0.168974]
[1752226284918,1.00776,118330.0,118320.0,0.168974]
[1752226286115,1.00776,118330.0,118320.0,0.18650704]
[1752226286329,0.4252,118330.0,118320.0,0.18650704]
[1752226286526,1.00792,118330.0,118320.0,0.18650704]
[1752226287633,1.00792,118330.0,118320.0,0.25567048]
[1752226288035,1.1768797,118330.0,118320.0,0.25567048]
[1752226291132,1.00792,118330.0,118320.0,0.25567048]
[1752226291327,1.1768797,118330.0,118320.0,0.25567048]
[1752226291528,1.00792,118330.0,118320.0,0.25567048]
[1752226291737,1.06851748,118330.0,118320.0,0.25567048]
[1752226291932,1.06851748,118330.0,118320.0,0.28807048]
[1752226292436,1.06851748,118330.0,118320.0,0.64870175]
[1752226293439,1.00792,118330.0,118320.0,0.64870175]
[1752226293639,0.64712,118330.0,118320.0,0.65370175]
[1752226293837,1.08326947,118330.0,118320.0,0.65370175]
[1752226294039,1.00756,118330.0,118320.0,0.65370175]
[1752226294231,0.72246944,118330.0,118320.0,0.65370175]
[1752226295642,0.72250944,118330.0,118320.0,0.65370175]
[1752226296545,0.72250944,118330.0,118320.0,0.29307048]
[1752226297644,0.89146914,118330.0,118320.0,0.29307048]
[1752226297844,0.89146914,118330.0,118320.0,0.65370175]
[1752226298245,0.89146914,118330.0,118320.0,0.58453831]
[1752226298444,0.89146914,118330.0,118320.0,0.22390704]
[1752226298641,0.72250944,118330.0,118320.0,0.22390704]
[1752226299344,0.72250944,118330.0,118320.0,0.19150704]
[1752226299545,1.08330944,118330.0,118320.0,0.19150704]
[1752226299946,1.25226914,118330.0,118320.0,0.19150704]
[1752226303344,1.59776899,118330.0,118320.0,0.19150704]
[1752226303846,1.59776899,118330.0,118320.0,0.005]